[Event "*** Titled Tuesday 3|2 Blitz"]
[Site "Chess.com"]
[Date "2015.12.01"]
[Round "9"]
[White "chessbia"]
[Black "norwaytoadog"]
[Result "0-1"]
[WhiteElo "2047"]
[BlackElo "1920"]
[TimeControl "180+2"]
[EndTime "18:58:05 PST"]
[Termination "norwaytoadog won by resignation"]

1. d4 {[%clk 0:03:01.9]} 1... Nf6 {[%clk 0:02:59.7]} 2. c4 {[%clk 0:02:58.4]}
2... e6 {[%clk 0:03:00.4]} 3. Nc3 {[%clk 0:02:56.5]} 3... Bb4 {[%clk 0:03:00.9]}
4. Qc2 {[%clk 0:02:56.7]} 4... Nc6 {[%clk 0:03:00.4]} 5. Nf3 {[%clk 0:02:55.5]}
5... d6 {[%clk 0:02:59.3]} 6. Bg5 {[%clk 0:02:51.9]} 6... h6 {[%clk 0:02:57.4]}
7. Bh4 {[%clk 0:02:52.4]} 7... g5 {[%clk 0:02:57.1]} 8. Bg3 {[%clk 0:02:52]}
8... g4 {[%clk 0:02:57.2]} 9. d5 {[%clk 0:02:50]} 9... gxf3 {[%clk 0:02:52.4]}
10. dxc6 {[%clk 0:02:51]} 10... fxe2 {[%clk 0:02:43.9]} 11. Bxe2 {[%clk
0:02:51.3]} 11... bxc6 {[%clk 0:02:42.8]} 12. O-O {[%clk 0:02:51.9]} 12... Bd7
{[%clk 0:02:40.3]} 13. Nd1 {[%clk 0:02:42]} 13... h5 {[%clk 0:02:34.3]} 14. Bh4
{[%clk 0:02:40.2]} 14... d5 {[%clk 0:02:21.1]} 15. c5 {[%clk 0:02:35.1]} 15...
Qe7 {[%clk 0:02:20.3]} 16. a3 {[%clk 0:02:33]} 16... Bxc5 {[%clk 0:02:19.7]} 17.
Bxf6 {[%clk 0:02:32.8]} 17... Qxf6 {[%clk 0:02:20.4]} 18. Qxc5 {[%clk
0:02:32.5]} 18... h4 {[%clk 0:02:19.8]} 19. Ne3 {[%clk 0:02:23.4]} 19... h3
{[%clk 0:02:18]} 20. g3 {[%clk 0:02:23]} 20... e5 {[%clk 0:02:15.8]} 21. b4
{[%clk 0:02:17.4]} 21... Rg8 {[%clk 0:02:12.4]} 22. Rae1 {[%clk 0:02:13.8]}
22... Qd6 {[%clk 0:02:11.2]} 23. Qxd6 {[%clk 0:02:10]} 23... cxd6 {[%clk
0:02:11.4]} 24. Bd3 {[%clk 0:02:02.8]} 24... Ke7 {[%clk 0:02:01.5]} 25. Nf5+
{[%clk 0:02:00.5]} 25... Ke6 {[%clk 0:01:52.4]} 26. f4 {[%clk 0:02:00]} 26... e4
{[%clk 0:01:42]} 27. Nd4+ {[%clk 0:02:00]} 27... Kf6 {[%clk 0:01:40.4]} 28. Be2
{[%clk 0:01:51.5]} 28... a5 {[%clk 0:01:40.7]} 29. Rb1 {[%clk 0:01:46.8]} 29...
axb4 {[%clk 0:01:34.7]} 30. axb4 {[%clk 0:01:47.2]} 30... Ra2 {[%clk 0:01:34]}
31. Rfe1 {[%clk 0:01:43.4]} 31... Rb8 {[%clk 0:01:32.5]} 32. Kf1 {[%clk
0:01:28.5]} 32... Rd2 {[%clk 0:01:28.9]} 33. Nb3 {[%clk 0:01:26.3]} 33... Ra2
{[%clk 0:01:28]} 34. Nd4 {[%clk 0:01:17.3]} 34... c5 {[%clk 0:01:05]} 35. bxc5
{[%clk 0:01:07.5]} 35... Rxb1 {[%clk 0:01:05]} 36. Rxb1 {[%clk 0:01:07.8]} 36...
dxc5 {[%clk 0:01:05.9]} 37. Rb6+ {[%clk 0:01:08.2]} 37... Ke7 {[%clk 0:01:04.9]}
38. Nc6+ {[%clk 0:01:07.3]} 38... Bxc6 {[%clk 0:00:56.2]} 39. Rxc6 {[%clk
0:01:08.1]} 39... c4 {[%clk 0:00:55.9]} 40. Bg4 {[%clk 0:01:00.8]} 40... Rxh2
{[%clk 0:00:54.1]} 41. Rh6 {[%clk 0:00:52.7]} 41... c3 {[%clk 0:00:51.5]} 42.
Rc6 {[%clk 0:00:41]} 42... Rh1+ {[%clk 0:00:51.8]} 43. Ke2 {[%clk 0:00:39.1]}
43... h2 {[%clk 0:00:48.8]} 44. Rxc3 {[%clk 0:00:26.8]} 44... Ra1 {[%clk
0:00:47.2]} 45. Rc7+ {[%clk 0:00:23.7]} 45... Kf6 {[%clk 0:00:47.4]} 46. Rc6+
{[%clk 0:00:22.4]} 46... Kg7 {[%clk 0:00:48.3]} 47. Bf3 {[%clk 0:00:21.3]} 47...
exf3+ {[%clk 0:00:48.8]} 48. Kxf3 {[%clk 0:00:22.6]} 48... h1=Q+ {[%clk
0:00:49.5]} 0-1

[Event "*** Titled Tuesday 3|2 Blitz"]
[Site "Chess.com"]
[Date "2015.12.01"]
[Round "9"]
[White "Iball95"]
[Black "wonderfultime"]
[Result "1-0"]
[WhiteElo "2453"]
[BlackElo "2618"]
[TimeControl "180+2"]
[EndTime "18:58:28 PST"]
[Termination "Iball95 won on time"]

1. e4 {[%clk 0:02:59.6]} 1... c5 {[%clk 0:03:01]} 2. Nf3 {[%clk 0:02:59.7]} 2...
d6 {[%clk 0:03:02.1]} 3. Bb5+ {[%clk 0:02:59.9]} 3... Nc6 {[%clk 0:02:56.4]} 4.
O-O {[%clk 0:02:59.4]} 4... Bd7 {[%clk 0:02:57.7]} 5. Re1 {[%clk 0:02:57.4]}
5... Nf6 {[%clk 0:02:58.4]} 6. c3 {[%clk 0:02:57]} 6... a6 {[%clk 0:02:59]} 7.
Bf1 {[%clk 0:02:57.3]} 7... Bg4 {[%clk 0:03:00]} 8. h3 {[%clk 0:02:57.9]} 8...
Bxf3 {[%clk 0:03:01.2]} 9. Qxf3 {[%clk 0:02:59.8]} 9... g6 {[%clk 0:03:03.1]}
10. d3 {[%clk 0:03:00.7]} 10... Bg7 {[%clk 0:03:04.5]} 11. Be3 {[%clk
0:03:01.4]} 11... O-O {[%clk 0:03:01.6]} 12. Nd2 {[%clk 0:03:01.8]} 12... Nd7
{[%clk 0:02:57.5]} 13. Qd1 {[%clk 0:03:01.6]} 13... b5 {[%clk 0:02:54.6]} 14.
Nf3 {[%clk 0:02:58.1]} 14... b4 {[%clk 0:02:55.3]} 15. Qa4 {[%clk 0:02:55.7]}
15... Qc7 {[%clk 0:02:35.9]} 16. d4 {[%clk 0:02:43.8]} 16... Rfb8 {[%clk
0:02:35.2]} 17. Rac1 {[%clk 0:02:41]} 17... bxc3 {[%clk 0:02:34.3]} 18. bxc3
{[%clk 0:02:41.5]} 18... Nd8 {[%clk 0:01:40.2]} 19. Rb1 {[%clk 0:02:17.9]} 19...
Rxb1 {[%clk 0:01:11.8]} 20. Rxb1 {[%clk 0:02:17]} 20... cxd4 {[%clk 0:01:13.7]}
21. cxd4 {[%clk 0:02:16]} 21... Ne6 {[%clk 0:01:15.3]} 22. Rc1 {[%clk
0:02:01.4]} 22... Qd8 {[%clk 0:01:14.1]} 23. Qc6 {[%clk 0:01:49.6]} 23... a5
{[%clk 0:01:08.7]} 24. Bb5 {[%clk 0:01:36.9]} 24... Nf6 {[%clk 0:00:57.8]} 25.
e5 {[%clk 0:01:16]} 25... dxe5 {[%clk 0:00:22.4]} 26. dxe5 {[%clk 0:01:17.9]}
26... Nd5 {[%clk 0:00:17.7]} 27. Rd1 {[%clk 0:01:13.5]} 27... Nec7 {[%clk
0:00:18.8]} 28. Bb6 {[%clk 0:01:08.3]} 28... Qb8 {[%clk 0:00:06.6]} 29. Rxd5
{[%clk 0:00:52.1]} 29... Nxd5 {[%clk 0:00:07.9]} 30. Qxd5 {[%clk 0:00:54]} 30...
e6 {[%clk 0:00:09.8]} 31. Qe4 {[%clk 0:00:43.3]} 31... Qc8 {[%clk 0:00:10.9]}
32. a4 {[%clk 0:00:41.2]} 32... Qc1+ {[%clk 0:00:06.2]} 33. Kh2 {[%clk
0:00:38.2]} 33... Rc8 {[%clk 0:00:07.4]} 34. Bxa5 {[%clk 0:00:33.6]} 34... Bh6
{[%clk 0:00:08.8]} 35. g3 {[%clk 0:00:30.6]} 35... Rc2 {[%clk 0:00:06]} 36. Bb6
{[%clk 0:00:29.4]} 36... Qd1 {[%clk 0:00:03.9]} 37. Qd3 {[%clk 0:00:21.5]} 37...
Qc1 {[%clk 0:00:02.8]} 38. Qd8+ {[%clk 0:00:18.9]} 38... Bf8 {[%clk 0:00:04.1]}
39. Kg2 {[%clk 0:00:17.5]} 1-0

[Event "*** Titled Tuesday 3|2 Blitz"]
[Site "Chess.com"]
[Date "2015.12.01"]
[Round "9"]
[White "adypady02"]
[Black "jlandaw"]
[Result "0-1"]
[WhiteElo "2489"]
[BlackElo "2376"]
[TimeControl "180+2"]
[EndTime "18:58:32 PST"]
[Termination "jlandaw won by resignation"]

1. e4 {[%clk 0:02:59.7]} 1... e5 {[%clk 0:03:00.1]} 2. Nf3 {[%clk 0:03:00.8]}
2... Nc6 {[%clk 0:03:01.3]} 3. Bb5 {[%clk 0:03:01.3]} 3... a6 {[%clk 0:03:02.4]}
4. Ba4 {[%clk 0:03:02.8]} 4... Nf6 {[%clk 0:03:03.5]} 5. O-O {[%clk 0:03:03.5]}
5... Be7 {[%clk 0:03:04.9]} 6. Re1 {[%clk 0:03:03.9]} 6... b5 {[%clk 0:03:05.9]}
7. Bb3 {[%clk 0:03:04.6]} 7... d6 {[%clk 0:03:07.3]} 8. c3 {[%clk 0:03:04.9]}
8... O-O {[%clk 0:03:06.4]} 9. h3 {[%clk 0:03:06.1]} 9... Na5 {[%clk 0:03:07.7]}
10. Bc2 {[%clk 0:03:07.1]} 10... c5 {[%clk 0:03:09.1]} 11. d4 {[%clk 0:03:08.6]}
11... Qc7 {[%clk 0:03:10.5]} 12. d5 {[%clk 0:03:09.3]} 12... c4 {[%clk
0:03:11.6]} 13. Nbd2 {[%clk 0:02:56.6]} 13... Nb7 {[%clk 0:03:06.1]} 14. Nf1
{[%clk 0:02:56.5]} 14... a5 {[%clk 0:03:02.6]} 15. a4 {[%clk 0:02:50]} 15... b4
{[%clk 0:02:37.6]} 16. Ne3 {[%clk 0:02:50.8]} 16... Nc5 {[%clk 0:02:37.7]} 17.
Nd2 {[%clk 0:02:30.1]} 17... bxc3 {[%clk 0:02:21.7]} 18. bxc3 {[%clk 0:02:31.2]}
18... Ba6 {[%clk 0:02:22.8]} 19. Nf5 {[%clk 0:01:51.4]} 19... Rfc8 {[%clk
0:02:11.2]} 20. Qf3 {[%clk 0:01:47.1]} 20... Bf8 {[%clk 0:01:51.3]} 21. Nf1
{[%clk 0:01:39.1]} 21... Kh8 {[%clk 0:01:16.3]} 22. N1g3 {[%clk 0:01:30]} 22...
Nd3 {[%clk 0:01:10.7]} 23. Re2 {[%clk 0:00:56.8]} 23... Rab8 {[%clk 0:00:57.8]}
24. Bg5 {[%clk 0:00:56.5]} 24... Ng8 {[%clk 0:00:58.1]} 25. Re3 {[%clk
0:00:37.6]} 25... f6 {[%clk 0:00:50.6]} 26. Bh4 {[%clk 0:00:30.3]} 26... g5
{[%clk 0:00:48.6]} 27. Qh5 {[%clk 0:00:26.3]} 27... Nf4 {[%clk 0:00:39.6]} 28.
Qg4 {[%clk 0:00:24.7]} 28... gxh4 {[%clk 0:00:38]} 29. Qxh4 {[%clk 0:00:20]}
29... Qf7 {[%clk 0:00:35.6]} 30. Bd1 {[%clk 0:00:19.2]} 30... Qg6 {[%clk
0:00:32]} 31. Bg4 {[%clk 0:00:08.7]} 31... Rc7 {[%clk 0:00:28.4]} 32. Nh5 {[%clk
0:00:07.6]} 32... Qg5 {[%clk 0:00:26.8]} 33. Qg3 {[%clk 0:00:03.2]} 33... Nxh5
{[%clk 0:00:25.7]} 34. Bxh5 {[%clk 0:00:05.1]} 34... Qxh5 {[%clk 0:00:26.8]} 35.
h4 {[%clk 0:00:06.4]} 35... Qg6 {[%clk 0:00:27.2]} 36. Qh3 {[%clk 0:00:07.3]}
36... Nh6 {[%clk 0:00:27.8]} 37. Rg3 {[%clk 0:00:08.8]} 37... Qf7 {[%clk
0:00:22.7]} 38. Ne3 {[%clk 0:00:10.1]} 38... Bc8 {[%clk 0:00:21.1]} 39. Qh2
{[%clk 0:00:10.7]} 39... Rb3 {[%clk 0:00:21.9]} 40. Nf1 {[%clk 0:00:07.2]} 40...
Qh5 {[%clk 0:00:19.4]} 41. Re1 {[%clk 0:00:06.7]} 41... Rg7 {[%clk 0:00:17.3]}
42. Rge3 {[%clk 0:00:06.1]} 42... Ng4 {[%clk 0:00:18.2]} 43. Qg3 {[%clk
0:00:07.3]} 43... Nxe3 {[%clk 0:00:18.9]} 44. Qxe3 {[%clk 0:00:09.2]} 44... Qxh4
{[%clk 0:00:18.4]} 45. Nd2 {[%clk 0:00:10.9]} 45... Qg5 {[%clk 0:00:19.1]} 0-1

[Event "*** Titled Tuesday 3|2 Blitz"]
[Site "Chess.com"]
[Date "2015.12.01"]
[Round "9"]
[White "MMSANCHEZ"]
[Black "gmjoey1"]
[Result "0-1"]
[WhiteElo "2323"]
[BlackElo "2433"]
[TimeControl "180+2"]
[EndTime "18:58:36 PST"]
[Termination "gmjoey1 won by resignation"]

1. d4 {[%clk 0:03:01.9]} 1... Nf6 {[%clk 0:02:50.8]} 2. Nf3 {[%clk 0:03:02.7]}
2... e6 {[%clk 0:02:50.4]} 3. c4 {[%clk 0:03:03.1]} 3... Bb4+ {[%clk 0:02:49.7]}
4. Bd2 {[%clk 0:03:02.8]} 4... Qe7 {[%clk 0:02:49.7]} 5. Nc3 {[%clk 0:03:03]}
5... Bxc3 {[%clk 0:02:47.5]} 6. Bxc3 {[%clk 0:03:03.7]} 6... Ne4 {[%clk
0:02:48.9]} 7. Qc2 {[%clk 0:03:04.8]} 7... Nxc3 {[%clk 0:02:45.4]} 8. Qxc3
{[%clk 0:03:05.2]} 8... O-O {[%clk 0:02:46.1]} 9. e4 {[%clk 0:03:04.9]} 9... b6
{[%clk 0:02:39.5]} 10. Bd3 {[%clk 0:03:05.6]} 10... Bb7 {[%clk 0:02:39.8]} 11.
O-O {[%clk 0:03:06.4]} 11... a5 {[%clk 0:02:36.4]} 12. Rfe1 {[%clk 0:03:06.8]}
12... d6 {[%clk 0:02:30.9]} 13. Rad1 {[%clk 0:03:03.1]} 13... Nd7 {[%clk
0:02:24.7]} 14. Bf1 {[%clk 0:03:01.4]} 14... e5 {[%clk 0:02:21.9]} 15. b3 {[%clk
0:03:02.2]} 15... Rfe8 {[%clk 0:02:14.3]} 16. dxe5 {[%clk 0:02:58.8]} 16... Nxe5
{[%clk 0:02:09.6]} 17. Nxe5 {[%clk 0:02:59.4]} 17... Qxe5 {[%clk 0:02:09.9]} 18.
Qxe5 {[%clk 0:02:56.6]} 18... Rxe5 {[%clk 0:02:10.4]} 19. f3 {[%clk 0:02:54.1]}
19... Rae8 {[%clk 0:02:10.5]} 20. Kf2 {[%clk 0:02:54.4]} 20... g6 {[%clk
0:02:08.7]} 21. Bd3 {[%clk 0:02:54.2]} 21... Kg7 {[%clk 0:02:08.1]} 22. a3
{[%clk 0:02:48.8]} 22... Bc8 {[%clk 0:01:51.9]} 23. g3 {[%clk 0:02:47.6]} 23...
Bb7 {[%clk 0:01:46.3]} 24. Bc2 {[%clk 0:02:45.2]} 24... h5 {[%clk 0:01:42.6]}
25. Bd3 {[%clk 0:02:43]} 25... h4 {[%clk 0:01:42.2]} 26. b4 {[%clk 0:02:37.6]}
26... Ra8 {[%clk 0:01:35.8]} 27. Ra1 {[%clk 0:02:36.8]} 27... hxg3+ {[%clk
0:01:26.8]} 28. hxg3 {[%clk 0:02:37.8]} 28... Rh5 {[%clk 0:01:28.3]} 29. Kg2
{[%clk 0:02:25.9]} 29... Kf6 {[%clk 0:01:27.3]} 30. f4 {[%clk 0:02:22.9]} 30...
Kg7 {[%clk 0:01:23.8]} 31. Reb1 {[%clk 0:01:55.3]} 31... Rah8 {[%clk 0:01:13.6]}
32. Rh1 {[%clk 0:01:23.7]} 32... Rxh1 {[%clk 0:01:10.9]} 33. Rxh1 {[%clk
0:01:24.5]} 33... Rxh1 {[%clk 0:01:11.1]} 34. Kxh1 {[%clk 0:01:25.6]} 34... f5
{[%clk 0:01:12.1]} 35. Kg1 {[%clk 0:01:23.4]} 35... fxe4 {[%clk 0:01:01.6]} 36.
Be2 {[%clk 0:01:22.8]} 36... e3 {[%clk 0:01:02.3]} 37. g4 {[%clk 0:01:24]} 37...
axb4 {[%clk 0:00:52.7]} 38. axb4 {[%clk 0:01:24]} 38... c5 {[%clk 0:00:53.4]}
39. bxc5 {[%clk 0:01:25.1]} 39... bxc5 {[%clk 0:00:53.6]} 40. Kh2 {[%clk
0:01:25.9]} 40... Ba6 {[%clk 0:00:52]} 41. Kg3 {[%clk 0:01:26.2]} 41... d5
{[%clk 0:00:52.7]} 42. Kf3 {[%clk 0:01:11.9]} 42... d4 {[%clk 0:00:52.5]} 43.
Ke4 {[%clk 0:01:05.1]} 43... Bc8 {[%clk 0:00:47.8]} 44. Bd1 {[%clk 0:00:45.2]}
44... Be6 {[%clk 0:00:45.6]} 45. Be2 {[%clk 0:00:45.2]} 45... Kf7 {[%clk
0:00:40.6]} 46. f5 {[%clk 0:00:45]} 46... gxf5+ {[%clk 0:00:40.5]} 47. gxf5
{[%clk 0:00:46.3]} 47... Bd7 {[%clk 0:00:41.5]} 48. Ke5 {[%clk 0:00:47.6]} 48...
Ba4 {[%clk 0:00:39.8]} 49. Kd6 {[%clk 0:00:10.1]} 49... Bc2 {[%clk 0:00:38.6]}
50. Kxc5 {[%clk 0:00:08.6]} 50... d3 {[%clk 0:00:39.6]} 51. Bf3 {[%clk
0:00:09.4]} 51... e2 {[%clk 0:00:38.8]} 0-1

[Event "*** Titled Tuesday 3|2 Blitz"]
[Site "Chess.com"]
[Date "2015.12.01"]
[Round "9"]
[White "jcibarra"]
[Black "Konavets"]
[Result "0-1"]
[WhiteElo "2510"]
[BlackElo "2522"]
[TimeControl "180+2"]
[EndTime "19:00:22 PST"]
[Termination "Konavets won by resignation"]

1. e4 {[%clk 0:03:01.9]} 1... c5 {[%clk 0:02:59.5]} 2. Nf3 {[%clk 0:03:02.9]}
2... d6 {[%clk 0:03:00.7]} 3. d4 {[%clk 0:03:04]} 3... cxd4 {[%clk 0:03:02.6]}
4. Nxd4 {[%clk 0:03:05.9]} 4... Nf6 {[%clk 0:03:04.5]} 5. Nc3 {[%clk 0:03:07.2]}
5... g6 {[%clk 0:03:05.8]} 6. Be3 {[%clk 0:03:08.1]} 6... Bg7 {[%clk 0:03:07.2]}
7. f3 {[%clk 0:03:09.6]} 7... O-O {[%clk 0:03:08.3]} 8. Qd2 {[%clk 0:03:11.1]}
8... Nc6 {[%clk 0:03:09.5]} 9. O-O-O {[%clk 0:03:12.7]} 9... Bd7 {[%clk
0:03:10.9]} 10. g4 {[%clk 0:03:13.1]} 10... Rc8 {[%clk 0:03:11.9]} 11. h4 {[%clk
0:03:13.7]} 11... Ne5 {[%clk 0:03:13.2]} 12. Kb1 {[%clk 0:03:13.4]} 12... b5
{[%clk 0:03:12.9]} 13. Ncxb5 {[%clk 0:03:08.3]} 13... a6 {[%clk 0:02:59.5]} 14.
Nc3 {[%clk 0:03:08.4]} 14... Qc7 {[%clk 0:02:58.7]} 15. Be2 {[%clk 0:03:03.8]}
15... Qb7 {[%clk 0:02:57.8]} 16. g5 {[%clk 0:03:01]} 16... Nh5 {[%clk
0:02:46.8]} 17. Nd5 {[%clk 0:02:57]} 17... Rfe8 {[%clk 0:02:47.1]} 18. Qb4
{[%clk 0:02:51.5]} 18... Qxb4 {[%clk 0:02:38.5]} 19. Nxb4 {[%clk 0:02:52.4]}
19... Ng3 {[%clk 0:02:39.5]} 20. Rhe1 {[%clk 0:02:45.1]} 20... Nxe2 {[%clk
0:02:22.1]} 21. Rxe2 {[%clk 0:02:47]} 21... Nc4 {[%clk 0:02:23.2]} 22. Bc1
{[%clk 0:02:44.4]} 22... e6 {[%clk 0:02:20.8]} 23. Nxa6 {[%clk 0:02:09.5]} 23...
Bxd4 {[%clk 0:02:13.6]} 24. Rxd4 {[%clk 0:02:09.7]} 24... Bb5 {[%clk 0:02:14.7]}
25. Nb4 {[%clk 0:02:02.2]} 25... Na3+ {[%clk 0:02:15.6]} 26. bxa3 {[%clk
0:02:03.3]} 26... Bxe2 {[%clk 0:02:17.5]} 27. f4 {[%clk 0:02:01.6]} 27... Rc4
{[%clk 0:02:03.6]} 28. Rxd6 {[%clk 0:01:55.5]} 28... Rxe4 {[%clk 0:02:03.3]} 29.
Bd2 {[%clk 0:01:56.9]} 29... Rb8 {[%clk 0:01:51]} 30. Kb2 {[%clk 0:01:55.3]}
30... e5 {[%clk 0:01:45.8]} 31. fxe5 {[%clk 0:01:52.9]} 31... Rxe5 {[%clk
0:01:45.5]} 32. Rd4 {[%clk 0:01:49.6]} 32... Rc5 {[%clk 0:01:42.4]} 33. Bf4
{[%clk 0:01:43.5]} 33... Rbc8 {[%clk 0:01:36.1]} 34. Nd5 {[%clk 0:01:27.2]}
34... Rxc2+ {[%clk 0:00:59.9]} 35. Kb3 {[%clk 0:01:28.4]} 35... Kg7 {[%clk
0:01:00.7]} 36. Be5+ {[%clk 0:01:26.3]} 36... f6 {[%clk 0:01:01.6]} 37. Nxf6
{[%clk 0:01:08.6]} 37... R8c3+ {[%clk 0:01:01.2]} 38. Kb4 {[%clk 0:01:07.8]}
38... Rc4+ {[%clk 0:01:02.2]} 39. Kb3 {[%clk 0:01:05.9]} 39... R2c3+ {[%clk
0:00:46.2]} 40. Kb2 {[%clk 0:01:06.4]} 40... Rxd4 {[%clk 0:00:46.6]} 41. Bxd4
{[%clk 0:01:02.5]} 41... Rc4 {[%clk 0:00:47.6]} 42. Bf2 {[%clk 0:00:55.5]} 42...
Bd1 {[%clk 0:00:44.9]} 43. Be1 {[%clk 0:00:52.3]} 43... Rc2+ {[%clk 0:00:43.4]}
44. Kb1 {[%clk 0:00:52.4]} 44... Re2 {[%clk 0:00:44]} 45. Bc3 {[%clk 0:00:51.4]}
45... Bc2+ {[%clk 0:00:45]} 46. Ka1 {[%clk 0:00:41.9]} 46... Ba4 {[%clk
0:00:38.3]} 47. Nd5+ {[%clk 0:00:34.3]} 47... Kf7 {[%clk 0:00:38.6]} 48. Nb6
{[%clk 0:00:34.3]} 48... Bb5 {[%clk 0:00:28.8]} 49. a4 {[%clk 0:00:35.6]} 49...
Ba6 {[%clk 0:00:29.9]} 50. Nd7 {[%clk 0:00:31.1]} 50... Rh2 {[%clk 0:00:24.2]}
51. Nc5 {[%clk 0:00:31.4]} 51... Bc8 {[%clk 0:00:23.5]} 52. Ne4 {[%clk
0:00:28.3]} 52... Rxh4 {[%clk 0:00:19.9]} 53. Nd6+ {[%clk 0:00:29.2]} 53... Ke6
{[%clk 0:00:21]} 54. Nxc8 {[%clk 0:00:15.8]} 54... Rc4 {[%clk 0:00:21.4]} 55.
Nb6 {[%clk 0:00:14.8]} 55... Rxc3 {[%clk 0:00:22.2]} 56. Kb2 {[%clk 0:00:16.6]}
56... Rc5 {[%clk 0:00:22.8]} 57. Kb3 {[%clk 0:00:16]} 57... Rxg5 {[%clk
0:00:23.1]} 58. Kb4 {[%clk 0:00:17.9]} 58... Kd6 {[%clk 0:00:23.3]} 59. a5
{[%clk 0:00:19.4]} 59... Kc6 {[%clk 0:00:24.6]} 60. Nc4 {[%clk 0:00:20.1]} 60...
Rg4 {[%clk 0:00:25.7]} 61. Kc3 {[%clk 0:00:20.4]} 61... Kb5 {[%clk 0:00:25.4]}
62. Ne5 {[%clk 0:00:20.2]} 62... Rg3+ {[%clk 0:00:26.3]} 63. Kd4 {[%clk
0:00:21.2]} 63... Kxa5 {[%clk 0:00:27.6]} 64. Ke4 {[%clk 0:00:21.9]} 64... Ra3
{[%clk 0:00:28.3]} 65. Nc4+ {[%clk 0:00:20.9]} 65... Kb4 {[%clk 0:00:29.7]} 66.
Ne5 {[%clk 0:00:20.6]} 66... Rxa2 {[%clk 0:00:30.8]} 67. Kf4 {[%clk 0:00:22.1]}
67... Rf2+ {[%clk 0:00:31]} 68. Kg4 {[%clk 0:00:23]} 68... Kc3 {[%clk
0:00:30.9]} 69. Nc6 {[%clk 0:00:21.1]} 69... Re2 {[%clk 0:00:30.6]} 70. Kg5
{[%clk 0:00:21.6]} 70... Kc4 {[%clk 0:00:28.4]} 71. Kh6 {[%clk 0:00:22.6]} 71...
Rh2+ {[%clk 0:00:29.1]} 72. Kg7 {[%clk 0:00:23.5]} 72... Kd5 {[%clk 0:00:29.6]}
73. Ne7+ {[%clk 0:00:23.8]} 73... Ke4 {[%clk 0:00:30.8]} 74. Ng8 {[%clk
0:00:24.8]} 74... g5 {[%clk 0:00:31.8]} 75. Nf6+ {[%clk 0:00:25.2]} 75... Kf3
{[%clk 0:00:33.2]} 0-1